bitfinex/quotes_SOLUSD_20250313
["timestamp","ask_amount","ask_price","bid_price","bid_amount"]
[1741826456570,0.063,126.53,126.51,35.30865922]
[1741826458144,0.063,126.53,126.48,35.30865922]
[1741826458365,35.37165922,126.53,126.47,35.30865922]
[1741826458669,35.37165922,126.53,126.48,35.30865922]
[1741826458844,0.063,126.53,126.48,35.30865922]
[1741826459048,0.063,126.53,126.49,35.30865922]
[1741826459363,0.063,126.53,126.5,35.30865922]
[1741826459867,0.063,126.53,126.51,35.30865922]
[1741826460366,0.063,126.53,126.5,35.30865922]
[1741826460669,0.063,126.53,126.49,35.30865922]
[1741826460968,0.063,126.53,126.5,35.30865922]
[1741826462053,35.37165922,126.53,126.47,35.30865922]
[1741826462248,0.063,126.53,126.51,35.30865922]
[1741826462462,0.063,126.53,126.52,35.30865922]
[1741826463949,0.063,126.53,126.51,41.50705922]
[1741826464149,0.063,126.53,126.52,35.30865922]
[1741826464747,0.063,126.53,126.51,35.30865922]
[1741826465253,0.063,126.53,126.52,35.30865922]
[1741826468256,0.063,126.53,126.52,43.21245922]
[1741826468655,0.063,126.53,126.52,43.49678236]
[1741826469277,0.063,126.53,126.52,35.59298236]
[1741826470256,0.063,126.53,126.52,43.49678236]
[1741826470754,0.063,126.53,126.52,35.59298236]
[1741826471971,0.063,126.53,126.52,35.30865922]
[1741826472178,0.063,126.53,126.51,35.30865922]
[1741826472555,0.063,126.53,126.48,6.6618]
[1741826472757,0.063,126.53,126.49,35.30865922]
[1741826473555,0.063,126.53,126.48,35.30865922]
[1741826473874,35.37165922,126.53,126.48,35.30865922]
[1741826474375,7.9038,126.52,126.48,35.30865922]
[1741826476275,19.8216,126.53,126.48,35.30865922]
[1741826476579,19.8216,126.53,126.5,35.30865922]
[1741826476580,7.9662,126.53,126.5,35.30865922]
[1741826476755,0.063,126.53,126.51,35.30865922]
[1741826476957,0.063,126.53,126.52,35.30865922]
[1741826477159,0.063,126.53,126.51,35.30865922]
[1741826477753,0.063,126.53,126.5,35.30865922]
[1741826477959,0.063,126.53,126.51,35.30865922]
[1741826478182,0.063,126.53,126.5,35.30865922]
[1741826478769,0.063,126.53,126.48,0.28432314]
[1741826479079,0.063,126.53,126.5,35.30865922]
[1741826479278,0.063,126.53,126.51,35.30865922]
[1741826480380,0.063,126.53,126.52,35.30865922]
[1741826481781,0.063,126.53,126.51,35.30865922]
[1741826482579,0.063,126.53,126.5,35.30865922]
[1741826482779,0.063,126.53,126.51,35.30865922]
[1741826484288,0.063,126.53,126.49,35.30865922]
[1741826484461,0.063,126.53,126.46,1.5255]
[1741826484662,63.03295922,126.53,126.46,1.5255]
[1741826484876,27.7243,126.53,126.49,35.30865922]
[1741826485569,7.9662,126.53,126.49,35.30865922]
[1741826485770,7.9662,126.53,126.5,35.30865922]
[1741826486490,0.063,126.53,126.5,35.30865922]
[1741826486879,0.063,126.53,126.49,35.30865922]
[1741826487887,35.37165922,126.53,126.48,35.30865922]
[1741826488068,35.30865922,126.52,126.47,35.30865922]
[1741826488267,35.30865922,126.52,126.46,36.83415922]
[1741826488471,35.30865922,126.52,126.47,35.30865922]
[1741826488692,0.063,126.53,126.46,35.30865922]
[1741826488693,62.97435922,126.51,126.46,35.30865922]
[1741826489075,27.6657,126.51,126.46,35.30865922]
[1741826489374,62.97435922,126.51,126.45,41.92025922]
[1741826489578,35.30865922,126.5,126.45,41.92025922]
[1741826490176,27.6657,126.51,126.45,41.92025922]
[1741826490177,62.97435922,126.51,126.45,41.92025922]
[1741826490373,62.97435922,126.51,126.46,35.30865922]
[1741826491173,62.97435922,126.51,126.45,41.92025922]
[1741826493075,35.30865922,126.5,126.45,35.30865922]
[1741826493995,62.97435922,126.51,126.45,35.30865922]
[1741826494191,62.97435922,126.51,126.46,35.30865922]
[1741826494495,7.9045,126.51,126.48,35.30865922]
[1741826494681,0.063,126.53,126.5,35.30865922]
[1741826495002,0.063,126.53,126.52,35.30865922]
[1741826495976,0.063,126.53,126.52,43.49678236]
[1741826496373,0.063,126.53,126.52,30.154909]
[1741826496597,0.063,126.53,126.52,56.22455786]
[1741826497599,0.063,126.53,126.52,78.19134372]
[1741826498306,0.063,126.53,126.52,69.39782399]
[1741826498804,0.063,126.53,126.52,61.49402399]
[1741826499101,0.063,126.53,126.52,69.39782399]
[1741826500600,0.063,126.53,126.52,42.84437513]
[1741826500812,0.063,126.53,126.52,42.56005199]
[1741826501117,0.063,126.53,126.52,35.14005199]
[1741826502000,0.063,126.53,126.52,35.42437513]
[1741826503182,0.063,126.53,126.52,43.32817513]
[1741826503501,0.063,126.53,126.52,61.97782399]
[1741826504598,0.063,126.53,126.52,54.07402399]
[1741826507403,0.063,126.53,126.52,61.97782399]
[1741826508403,0.063,126.53,126.52,35.42437513]
[1741826509926,0.063,126.53,126.52,35.14005199]
[1741826510407,0.063,126.53,126.52,61.97782399]
[1741826511806,0.063,126.53,126.52,54.07402399]
[1741826512209,0.063,126.53,126.52,35.14005199]
[1741826514509,0.063,126.53,126.52,35.42437513]
[1741826514716,0.063,126.53,126.52,61.97782399]
[1741826515792,0.063,126.53,126.52,97.11787598]
[1741826516286,0.063,126.53,126.52,61.97782399]
[1741826516796,0.063,126.53,126.52,97.11787598]
[1741826517598,0.063,126.53,126.52,98.63587598]
[1741826517805,0.063,126.55,126.54,0.28432314]
[1741826519019,0.063,126.55,126.53,26.55224886]
[1741826519194,0.063,126.55,126.54,35.14005199]
[1741826520209,0.063,126.55,126.52,13.62697823]
[1741826520403,0.063,126.55,126.54,21.96373578]
[1741826520604,0.063,126.55,126.52,1.80232314]
[1741826520810,0.03,126.53,126.52,0.28432314]
[1741826521011,0.03,126.53,126.52,8.18812314]
[1741826521520,0.03,126.53,126.52,22.24805892]
[1741826522005,0.03,126.53,126.52,30.15185892]
[1741826522420,0.03,126.53,126.52,48.80150778]
[1741826522798,0.063,126.55,126.52,70.76524356]
[1741826523017,0.063,126.55,126.54,62.57712042]
[1741826524217,0.063,126.55,126.54,21.96373578]
[1741826526201,0.063,126.55,126.53,21.96373578]
[1741826527015,0.063,126.55,126.5,197.72732314]
[1741826527016,0.063,126.55,126.54,21.96373578]
[1741826527701,0.063,126.55,126.53,21.96373578]
[1741826530701,22.02673578,126.55,126.5,0.063]
[1741826530924,21.96373578,126.53,126.5,0.063]
[1741826531102,0.063,126.55,126.5,22.02673578]
[1741826531402,22.02673578,126.55,126.5,22.02673578]
[1741826532118,21.96373578,126.53,126.5,0.063]
[1741826532308,29.24373578,126.54,126.5,0.063]
[1741826532825,29.86693578,126.53,126.5,0.063]
[1741826535104,21.96373578,126.52,126.5,0.063]
[1741826535528,60.61338464,126.51,126.5,0.0001]
[1741826536226,60.89770778,126.51,126.5,0.0001]
[1741826537121,68.80220778,126.51,126.5,0.0001]
[1741826537306,0.28432314,126.5,126.45,0.063]
[1741826537506,21.96373578,126.46,126.45,0.063]
[1741826537718,21.96373578,126.47,126.45,0.063]
[1741826539526,7.9076,126.46,126.45,0.063]
[1741826541115,7.9071,126.47,126.45,0.063]
[1741826541315,7.9065,126.48,126.45,0.063]
[1741826541528,7.9065,126.48,126.45,22.02673578]
[1741826541732,15.1857,126.49,126.45,22.02673578]
[1741826542627,21.96373578,126.48,126.45,0.063]
[1741826543627,21.96373578,126.47,126.45,0.063]
[1741826545910,7.9076,126.46,126.45,0.063]
[1741826550042,29.87073578,126.47,126.45,0.063]
[1741826552926,7.9051,126.5,126.45,22.02673578]
[1741826553125,49.63163578,126.5,126.45,0.063]
[1741826553326,21.96373578,126.49,126.45,0.063]
[1741826555052,7.9063,126.48,126.45,0.063]
[1741826555823,7.9059,126.49,126.45,0.063]
[1741826556029,29.86963578,126.49,126.45,0.063]
[1741826558057,7.9059,126.49,126.45,0.063]
[1741826558231,21.98883764,126.49,126.45,0.063]
[1741826559260,41.75323764,126.49,126.45,0.063]
[1741826560124,14.08293764,126.48,126.45,0.063]
[1741826560454,14.08293764,126.47,126.45,0.063]
[1741826562258,14.08293764,126.48,126.45,0.063]
[1741826562561,21.98923764,126.48,126.45,0.063]
[1741826563263,41.75513764,126.48,126.45,0.063]
[1741826563762,41.25513764,126.48,126.45,0.063]
[1741826564458,14.08293764,126.47,126.45,0.063]
[1741826565261,14.08293764,126.46,126.45,0.063]
[1741826567456,21.99053764,126.46,126.45,0.063]
[1741826567654,40.6401865,126.46,126.45,0.0001]
[1741826569149,7.9072,126.47,126.45,0.0001]
[1741826569353,7.9063,126.48,126.45,14.08303764]
[1741826570961,7.9063,126.48,126.45,0.0001]
[1741826571148,21.98923764,126.48,126.45,0.0001]
[1741826572057,7.9063,126.48,126.45,0.0001]
[1741826572361,7.9059,126.49,126.45,0.0001]
[1741826572744,0.03,126.5,126.47,14.08293764]
[1741826573339,0.03,126.5,126.48,14.08293764]
[1741826574364,0.03,126.5,126.47,14.08293764]
[1741826574738,0.03,126.5,126.46,14.08293764]
[1741826574939,0.03,126.5,126.45,7.6555]
[1741826575158,7.9351,126.5,126.45,21.73843764]
[1741826575336,22.01803764,126.5,126.45,21.73843764]
[1741826575975,22.01803764,126.5,126.45,7.6555]
[1741826576142,14.08293764,126.49,126.45,7.6555]
[1741826576852,41.78083764,126.5,126.45,7.6555]
[1741826578559,7.9351,126.5,126.45,21.73843764]
[1741826578960,7.9351,126.5,126.46,14.08293764]
[1741826580069,0.03,126.5,126.47,14.08293764]
[1741826580763,0.03,126.5,126.45,21.73843764]
[1741826581171,14.11293764,126.5,126.45,7.6555]
[1741826581346,14.08293764,126.48,126.45,6.0341]
[1741826581548,14.11293764,126.5,126.45,20.11703764]
[1741826581751,7.9057,126.49,126.45,14.08303764]
[1741826581953,7.9057,126.49,126.45,0.0001]
[1741826582259,14.08293764,126.48,126.45,0.0001]
[1741826584573,7.907,126.47,126.45,0.0001]
[1741826585772,14.08293764,126.46,126.45,0.0001]
[1741826586476,40.6401865,126.46,126.45,0.0001]
[1741826587956,20.28432314,126.42,126.39,0.063]
[1741826588265,18.933972,126.39,126.37,0.063]
[1741826588569,60.6451865,126.38,126.37,0.063]
[1741826588868,7.9126,126.38,126.37,0.063]
[1741826589261,7.9121,126.39,126.37,0.063]
[1741826589880,7.9113,126.4,126.37,0.063]
[1741826590055,21.99423764,126.4,126.37,0.063]
[1741826590573,14.08293764,126.38,126.37,0.063]
[1741826592266,22.0435164,126.38,126.37,0.063]
[1741826592455,22.0435164,126.39,126.37,0.063]
[1741826592653,29.9558164,126.39,126.37,0.063]
[1741826593479,22.0435164,126.41,126.37,0.063]
[1741826593879,29.9531164,126.43,126.37,28.3637164]
[1741826594060,22.0435164,126.42,126.37,28.3637164]
[1741826594260,22.0435164,126.42,126.37,6.3202]
[1741826594475,29.9542164,126.42,126.37,6.3202]
[1741826594968,22.0435164,126.42,126.37,28.3637164]
[1741826595358,29.9531164,126.43,126.37,28.3637164]
[1741826595879,29.9531164,126.43,126.37,27.8637164]
[1741826596582,29.9531164,126.43,126.37,35.7768164]
[1741826596960,22.0435164,126.42,126.37,35.7768164]
[1741826597265,7.9096,126.43,126.37,27.8637164]
[1741826597468,29.9531164,126.43,126.37,27.8637164]
[1741826597783,22.0435164,126.42,126.37,27.8637164]
[1741826600183,22.0435164,126.47,126.43,6.0737]
[1741826600686,22.0435164,126.46,126.43,6.0737]
[1741826600981,40.69316526,126.47,126.43,6.0737]
[1741826601181,7.9078,126.46,126.43,6.0737]
[1741826601391,29.9513164,126.46,126.41,22.0435164]
[1741826601593,22.0435164,126.44,126.4,6.0737]
[1741826601963,22.0435164,126.43,126.4,6.0737]
[1741826602180,22.0435164,126.44,126.4,6.0737]
[1741826602383,22.0435164,126.43,126.38,23.6297164]
[1741826602885,48.60136526,126.45,126.39,22.0435164]
[1741826603781,48.60136526,126.45,126.4,22.0435164]
[1741826605478,22.0435164,126.44,126.39,22.0435164]
[1741826605678,22.0435164,126.44,126.38,23.6297164]
[1741826606272,22.0435164,126.44,126.39,22.0435164]
[1741826606874,68.37196526,126.45,126.39,22.0435164]
[1741826607676,7.9082,126.45,126.4,22.0435164]
[1741826608169,0.03,126.47,126.43,22.0435164]
[1741826608489,0.03,126.47,126.43,28.2035164]
[1741826608976,0.03,126.47,126.43,6.16]
[1741826609176,7.9371,126.47,126.43,6.16]
[1741826610068,22.0435164,126.46,126.43,6.16]
[1741826611171,22.0435164,126.46,126.41,22.0435164]
[1741826611172,22.0435164,126.45,126.39,28.4947164]
[1741826611373,22.0435164,126.44,126.39,28.4947164]
[1741826611979,7.9095,126.43,126.39,28.4947164]
[1741826612182,7.9095,126.43,126.4,22.0435164]
[1741826613885,40.69316526,126.46,126.4,22.0435164]
[1741826614215,29.9517164,126.45,126.4,22.0435164]
[1741826614506,40.69316526,126.44,126.39,6.4512]
[1741826615095,40.69316526,126.44,126.39,28.4947164]
[1741826615499,22.0435164,126.43,126.39,6.4512]
[1741826615797,40.69316526,126.44,126.39,6.4512]
[1741826615992,18.64964886,126.44,126.39,28.4947164]
[1741826616296,7.9095,126.43,126.39,28.4947164]
[1741826616799,7.9095,126.43,126.39,6.4512]
[1741826619297,7.9095,126.43,126.39,28.4947164]
[1741826619605,7.9095,126.43,126.39,6.4512]
[1741826620616,7.9095,126.43,126.39,28.4947164]
[1741826621092,7.9095,126.43,126.39,6.4512]
[1741826623291,7.9095,126.43,126.39,28.4947164]
[1741826624510,49.7267164,126.43,126.39,6.4512]
[1741826626400,7.9095,126.43,126.39,6.4512]
[1741826626604,7.9095,126.43,126.39,28.4947164]
[1741826627111,29.9530164,126.43,126.39,6.4512]
[1741826627485,7.9095,126.43,126.39,28.4947164]
[1741826628010,7.9095,126.43,126.39,6.4512]
[1741826628507,49.7267164,126.43,126.39,6.4512]
[1741826628888,27.6832,126.43,126.39,6.4512]
[1741826629087,7.9095,126.43,126.39,6.4512]
[1741826629586,29.9530164,126.43,126.39,6.4512]
[1741826630382,49.7267164,126.43,126.39,6.4512]
[1741826630801,22.0435164,126.42,126.39,6.4512]
[1741826631179,49.7267164,126.43,126.39,6.4512]
[1741826632301,22.0435164,126.42,126.37,22.1065164]
[1741826632485,7.9107,126.41,126.37,22.1065164]
[1741826635002,7.9095,126.43,126.39,22.0435164]
[1741826635199,7.9095,126.43,126.4,22.0435164]
[1741826635999,0.03,126.44,126.41,22.0435164]
[1741826636397,0.03,126.44,126.41,14.0902224]
[1741826636602,0.03,126.44,126.4,14.0902224]
[1741826638305,0.03,126.44,126.4,22.01988763]
[1741826638818,0.03,126.44,126.39,22.01988763]
[1741826639720,0.03,126.44,126.4,22.01988763]
[1741826640607,22.04988763,126.44,126.39,22.01988763]
[1741826641114,22.01988763,126.42,126.37,22.08288763]
[1741826642006,40.66953649,126.43,126.37,22.08288763]
[1741826642498,49.70528763,126.42,126.37,22.08288763]
[1741826643102,40.95385963,126.41,126.37,0.063]
[1741826643421,22.01988763,126.39,126.37,0.063]
[1741826643821,22.01988763,126.38,126.37,0.063]
[1741826644012,22.01988763,126.38,126.3,22.01988763]
[1741826644013,40.95385963,126.38,126.31,8.0283]
[1741826644214,60.95385963,126.33,126.27,49.51614941]
[1741826644526,68.86955963,126.33,126.27,12.37903735]
[1741826645605,49.93558763,126.33,126.27,12.37903735]
[1741826645805,20.0,126.33,126.29,22.01988763]
[1741826646115,22.01988763,126.35,126.3,22.01988763]
[1741826646308,22.01988763,126.34,126.29,22.01988763]
[1741826646706,22.01988763,126.35,126.3,22.01988763]
[1741826646911,22.01988763,126.36,126.31,22.01988763]
[1741826647304,22.01988763,126.35,126.3,22.01988763]
[1741826647816,7.9132,126.37,126.31,22.01988763]
[1741826648117,22.01988763,126.36,126.31,22.01988763]
[1741826648316,22.01988763,126.36,126.3,22.01988763]
[1741826648510,22.01988763,126.36,126.31,22.01988763]
[1741826649100,22.01988763,126.35,126.3,22.01988763]
[1741826649529,22.01988763,126.33,126.26,8.0283]
[1741826649729,48.09169806,126.33,126.26,8.0283]
[1741826649902,48.23385963,126.33,126.26,8.0283]
[1741826650220,18.933972,126.32,126.26,8.0283]
[1741826650521,22.01988763,126.28,126.24,0.063]
[1741826650729,29.93938763,126.27,126.24,0.063]
[1741826651805,22.01988763,126.26,126.24,0.063]
[1741826652200,7.9195,126.27,126.24,0.063]
[1741826652201,22.01988763,126.25,126.24,0.063]
[1741826652725,22.01988763,126.26,126.24,0.063]
[1741826653018,22.01988763,126.25,126.24,0.063]
[1741826654621,22.01988763,126.27,126.24,0.063]
[1741826654826,37.21878763,126.28,126.24,0.063]
[1741826655004,22.01988763,126.27,126.24,0.063]
[1741826655317,29.29988763,126.28,126.24,0.063]
[1741826656220,37.21878763,126.28,126.24,0.063]
[1741826656634,22.01988763,126.27,126.24,0.063]
[1741826656822,7.9201,126.26,126.24,0.063]
[1741826657210,29.93998763,126.26,126.24,0.063]
[1741826658630,22.01988763,126.25,126.24,0.063]
[1741826659032,29.94058763,126.25,126.24,0.063]
[1741826659219,7.9207,126.25,126.24,0.063]
[1741826659526,22.01988763,126.28,126.24,0.063]
[1741826660049,29.4620492,126.3,126.25,22.01988763]
[1741826660206,37.3798492,126.3,126.25,22.01988763]
[1741826660610,30.0798492,126.3,126.25,22.01988763]
[1741826660823,22.01988763,126.29,126.24,22.08288763]
[1741826661023,7.9189,126.28,126.24,22.08288763]
[1741826661228,29.93878763,126.28,126.24,0.063]
[1741826661530,7.9189,126.28,126.24,22.08288763]
[1741826662320,30.48946999,126.35,126.25,26.819672]
[1741826662521,43.1533,126.38,126.31,22.01988763]
[1741826662522,29.31988763,126.36,126.31,22.01988763]
[1741826662720,37.23388763,126.36,126.31,22.01988763]
[1741826663532,0.03,126.32,126.31,22.01988763]
[1741826663925,0.03,126.32,126.3,22.01988763]
[1741826664636,0.03,126.32,126.31,22.01988763]
[1741826665331,0.03,126.32,126.27,7.44216157]
[1741826665332,0.03,126.32,126.29,22.01988763]
[1741826665531,0.03,126.32,126.28,22.01988763]
[1741826666136,0.03,126.32,126.31,22.01988763]
[1741826666521,0.03,126.32,126.3,22.01988763]
[1741826667744,0.03,126.32,126.31,22.01988763]
[1741826667924,0.03,126.32,126.3,22.01988763]
[1741826670542,0.03,126.32,126.29,22.01988763]
[1741826671130,0.03,126.32,126.3,22.01988763]
[1741826671437,0.03,126.32,126.29,22.01988763]
[1741826673930,0.03,126.32,126.25,34.099672]
[1741826673931,0.03,126.32,126.28,22.01988763]
[1741826674143,0.03,126.32,126.29,22.01988763]
[1741826677951,0.03,126.32,126.31,22.01988763]
[1741826678324,0.03,126.32,126.31,29.93688763]
[1741826678839,0.03,126.32,126.31,22.01988763]
[1741826679638,0.03,126.32,126.3,22.01988763]
[1741826679833,0.03,126.32,126.31,22.01988763]
[1741826680246,0.03,126.32,126.3,22.01988763]
[1741826681751,0.03,126.32,126.3,29.93748763]
[1741826681939,0.03,126.32,126.31,22.01988763]
[1741826682142,0.03,126.32,126.3,22.01988763]
[1741826683533,0.03,126.32,126.31,22.01988763]
[1741826684753,0.03,126.32,126.3,22.01988763]
[1741826686655,0.03,126.32,126.3,29.93748763]
[1741826686828,0.03,126.32,126.31,22.01988763]
[1741826687032,0.03,126.32,126.3,22.08288763]
[1741826687750,0.03,126.32,126.3,30.00038763]
[1741826688247,0.03,126.32,126.31,29.93688763]
[1741826688548,0.03,126.32,126.31,56.54075963]
[1741826689156,0.03,126.32,126.31,48.62375963]
[1741826689339,0.03,126.32,126.31,56.54075963]
[1741826695362,0.03,126.32,126.31,28.13098763]
[1741826695548,0.03,126.32,126.3,22.08288763]
[1741826698135,0.03,126.32,126.3,0.063]
[1741826699336,0.03,126.32,126.3,22.08288763]
[1741826699680,0.03,126.32,126.31,22.01988763]
[1741826700258,0.03,126.32,126.31,40.95385963]
[1741826701464,0.03,126.32,126.31,48.87085963]
[1741826701663,0.03,126.32,126.31,40.95385963]
[1741826702281,0.03,126.32,126.31,22.01988763]
[1741826703137,0.03,126.32,126.31,48.87085963]
[1741826704960,5.0373,126.42,126.35,18.933972]
[1741826704961,7.9403,126.42,126.35,18.933972]
[1741826705158,49.73548763,126.42,126.36,22.01988763]
[1741826705364,22.01988763,126.4,126.34,22.01988763]
[1741826706165,7.912,126.39,126.34,22.01988763]
[1741826706543,7.912,126.39,126.35,22.01988763]
[1741826706743,7.912,126.39,126.32,6.4309]
[1741826706744,49.71188763,126.39,126.34,22.01988763]
[1741826706944,22.01988763,126.37,126.32,28.45078763]
[1741826707150,22.01988763,126.38,126.32,28.45078763]
[1741826707652,49.71188763,126.39,126.33,22.01988763]
[1741826708363,7.912,126.39,126.35,22.01988763]
[1741826708562,29.93188763,126.39,126.34,22.01988763]
[1741826708867,22.01988763,126.38,126.33,22.01988763]
[1741826709066,22.01988763,126.37,126.32,28.45078763]
[1741826709265,22.01988763,126.35,126.3,22.08288763]
[1741826709771,22.01988763,126.31,126.3,0.063]
[1741826710155,29.93688763,126.31,126.3,0.063]
[1741826711049,48.87085963,126.31,126.3,0.063]
[1741826711255,57.70215963,126.31,126.3,0.063]
[1741826712365,38.76818763,126.31,126.3,0.063]
[1741826712550,8.8313,126.31,126.3,0.063]
[1741826712751,7.28,126.31,126.3,0.063]
[1741826712950,22.01988763,126.33,126.3,0.063]
[1741826713358,38.84268763,126.34,126.3,0.063]
[1741826713747,22.01988763,126.32,126.3,0.063]
[1741826713943,22.01988763,126.33,126.3,0.063]
[1741826715160,22.01988763,126.32,126.3,0.063]
[1741826717083,29.93688763,126.31,126.3,0.063]
[1741826717662,48.87085963,126.31,126.24,0.063]
[1741826717967,22.01988763,126.28,126.24,0.063]
[1741826718546,26.07181043,126.29,126.24,0.063]
[1741826718547,22.01988763,126.27,126.24,0.063]
[1741826719170,29.93988763,126.27,126.24,0.063]
[1741826719474,7.92,126.27,126.24,0.063]
[1741826720970,22.01988763,126.26,126.24,0.063]
[1741826721170,22.1620492,126.25,126.24,0.063]
[1741826722555,30.0827492,126.25,126.24,0.063]
[1741826724367,48.87455963,126.25,126.24,0.063]
[1741826725967,0.14216157,126.23,126.22,0.063]
[1741826726165,68.23385963,126.23,126.22,0.0001]
[1741826726470,69.88325963,126.23,126.22,0.0001]
[1741826726770,20.14216157,126.2,126.19,0.063]
[1741826726972,60.81169806,126.2,126.19,0.063]
[1741826727475,60.95385963,126.2,126.19,0.0001]
[1741826728658,68.87775963,126.2,126.19,0.0001]
[1741826729470,68.87775963,126.2,126.17,0.063]
[1741826729471,18.933972,126.19,126.17,0.063]
[1741826729678,18.933972,126.17,126.12,0.063]
[1741826729976,22.01988763,126.15,126.12,0.063]
[1741826730480,22.01988763,126.14,126.12,0.063]
[1741826732762,29.94758763,126.14,126.12,0.063]
[1741826732963,22.01988763,126.14,126.12,0.063]
[1741826733273,30.0880492,126.17,126.12,22.08288763]
[1741826733459,0.14216157,126.18,126.13,22.01988763]
[1741826733659,22.01988763,126.17,126.12,22.08288763]
[1741826734255,22.01988763,126.15,126.12,0.063]
[1741826734456,22.01988763,126.17,126.12,22.08288763]
[1741826734677,22.01988763,126.18,126.13,22.01988763]
[1741826735055,29.94538763,126.18,126.13,29.94798763]
[1741826735261,29.94538763,126.18,126.13,22.01988763]
[1741826735880,22.01988763,126.16,126.12,0.063]
[1741826736178,22.1620492,126.17,126.12,22.08288763]
[1741826736355,22.1620492,126.17,126.12,0.063]
[1741826736356,22.01988763,126.16,126.12,0.063]
[1741826737377,7.927,126.15,126.12,0.063]
[1741826737605,7.927,126.15,126.12,22.08288763]
[1741826737877,7.9265,126.16,126.12,22.08288763]
[1741826738871,0.063,126.18,126.13,22.01988763]
[1741826739075,22.01988763,126.17,126.12,22.08288763]
[1741826739684,7.9264,126.16,126.12,22.08288763]
[1741826739890,29.94628763,126.16,126.12,0.063]
[1741826740181,22.01988763,126.15,126.12,0.063]
[1741826740378,19.8145,126.17,126.12,0.063]
[1741826740379,0.063,126.18,126.14,22.01988763]
[1741826740570,0.063,126.18,126.17,22.01988763]
[1741826740770,0.063,126.18,126.16,22.01988763]
[1741826741689,22.01988763,126.28,126.21,22.01988763]
[1741826741873,22.1620492,126.27,126.21,22.01988763]
[1741826742064,22.01988763,126.25,126.2,22.01988763]
[1741826742390,22.01988763,126.28,126.23,22.01988763]
[1741826745974,0.14216157,126.28,126.23,22.01988763]
[1741826746173,22.1620492,126.28,126.23,22.01988763]
[1741826746484,22.01988763,126.28,126.23,22.01988763]
[1741826746686,22.01988763,126.25,126.18,7.28]
[1741826746983,22.01988763,126.26,126.21,22.01988763]
[1741826747678,22.01988763,126.26,126.2,22.01988763]
[1741826747858,22.01988763,126.26,126.18,7.28]
[1741826748061,29.93998763,126.26,126.2,22.01988763]
[1741826748272,29.93998763,126.26,126.21,22.01988763]
[1741826748473,29.93998763,126.26,126.2,22.01988763]
[1741826748679,22.1620492,126.25,126.19,22.01988763]
[1741826748867,0.14216157,126.23,126.19,22.01988763]
[1741826749069,22.01988763,126.23,126.18,22.01988763]
[1741826749468,22.01988763,126.21,126.17,6.1977]
[1741826749668,22.01988763,126.19,126.14,23.67098763]
[1741826750123,22.01988763,126.17,126.13,6.5544]
[1741826750296,35.39890945,126.15,126.12,0.063]
[1741826750588,0.14216157,126.16,126.12,0.063]
[1741826750589,35.39890945,126.14,126.12,0.063]
[1741826751591,0.14216157,126.14,126.12,0.063]
[1741826751888,42.67890945,126.16,126.12,0.063]
[1741826752087,7.927,126.15,126.12,0.063]
[1741826752293,43.32590945,126.15,126.12,0.063]
[1741826753292,7.927,126.15,126.12,0.063]
[1741826753793,43.32590945,126.15,126.12,0.063]
[1741826754384,7.927,126.15,126.12,0.063]
[1741826754788,35.39890945,126.18,126.13,35.39890945]
[1741826754986,62.11521988,126.19,126.14,35.39890945]
[1741826759096,43.46717102,126.17,126.12,0.063]
[1741826759393,43.46717102,126.17,126.13,0.063]
[1741826761184,35.54107102,126.15,126.13,0.063]
[1741826761573,0.14216157,126.15,126.13,0.063]
[1741826762581,7.9276,126.14,126.13,0.063]
[1741826763073,43.46747102,126.16,126.13,0.063]
[1741826764395,63.28357102,126.16,126.13,0.063]
[1741826765590,35.39890945,126.15,126.13,0.063]
[1741826765977,43.46747102,126.16,126.13,0.063]
[1741826767301,0.14216157,126.14,126.13,0.063]
[1741826767615,18.79181043,126.13,126.12,0.063]
[1741826767778,18.79181043,126.13,126.06,6.2556]
[1741826767779,0.14216157,126.11,126.06,6.2556]
[1741826768098,35.39890945,126.09,126.06,0.063]